fUSD/lending_fUSD_20241107
["ID","MTS","AMOUNT","RATE_DAILY","PERIOD"]
[341563155,1730998240054,-2146.42,0.00027989,2]
[341563156,1730998240063,-250.0,0.00027992,2]
[341563157,1730998240074,-500.0,0.00028,14]
[341563158,1730998240085,-500.0,0.00028,14]
[341563159,1730998240095,-6528.14566483,0.00028001,2]
[341563160,1730998240105,-2909.86433517,0.00028001,2]
[341563161,1730998240115,-63.03249483,0.00028006,2]
[341563162,1730998240140,-91.36750517,0.00028006,2]
[341563163,1730998240152,-2000.0,0.00028061,120]
[341563164,1730998240162,-377.34,0.00028067,120]
[341563165,1730998240172,-1142.5,0.00028071,2]
[341563166,1730998240182,-344.71,0.00028089,2]
[341563167,1730998240191,-252.11,0.0002809,30]
[341563168,1730998240200,-3794.03,0.00028134,2]
[341563169,1730998240210,-164.85,0.00028215,2]
[341563170,1730998240221,-439.08,0.00028286,2]
[341563171,1730998240230,-58.35097572,0.00028328,2]
[341563180,1730998242817,-59.10520139,0.00028328,2]
[341563181,1730998242874,-61.85382289,0.00028328,2]
[341563182,1730998242884,-260.0,0.000284,120]
[341563183,1730998242894,-1170.99,0.00028463,2]
[341563184,1730998242903,-1142.5,0.00028508,2]
[341563185,1730998242912,-160.0,0.00028686,120]
[341563186,1730998242922,-1004.72930041,0.00028945,2]
[341563187,1730998243035,-137.77069959,0.00028945,2]
[341563188,1730998243044,-450.0,0.00029,2]
[341563189,1730998243054,-8651.10716082,0.00029,2]
[341563190,1730998243065,-1054.91337115,0.00029,2]
[341563286,1730998248602,150.0,0.0002661,30]
[341563287,1730998302766,1091.21,0.00026881,2]
[341563288,1730998599682,-200.0,0.00023,2]
[341563289,1730998682695,200.0,0.00023,2]
[341563291,1730998687429,157.72,0.00015342,2]
[341563292,1730998802875,200.0,0.00023,2]
[341563293,1730998862798,200.0,0.00023,2]
[341563294,1730998876789,-823.63905961,0.00024298,2]
[341563296,1730999220432,165.6,0.00015342,2]
[341563297,1730999232143,-160.66,0.0002176,2]
[341563298,1730999232164,-160.916,0.000224,5]
[341563299,1730999232185,-211.74549318,0.00023,2]
[341563300,1730999232206,-160.663,0.0002484,2]
[341563301,1730999232227,-500.0,0.00024932,2]
[341563302,1730999232249,-1185.92,0.00025443,2]
[341563303,1730999232270,-177.85,0.00025741,2]
[341563304,1730999232290,-8859.14,0.00025741,2]
[341563305,1730999232537,-2885.0,0.000258,3]
[341563306,1730999232559,-3622.66,0.000258,2]
[341563307,1730999232582,-1265.89671571,0.00026149,2]
[341563308,1730999252125,-1137.91328429,0.00026149,2]
[341563309,1730999252359,-166.86,0.00026416,2]
[341563310,1730999252383,-1435.78785959,0.00026569,2]
[341563311,1730999295583,245.21586623,0.00018123,2]
[341563312,1730999357133,-1834.23,0.00026261,2]
[341563313,1730999357153,-466.33,0.00026284,2]
[341563314,1730999357172,-800.0,0.00026296,2]
[341563315,1730999357193,-164.85,0.00026341,2]
[341563316,1730999357213,-500.0,0.00026375,2]
[341563317,1730999357233,-437.33,0.00026399,2]
[341563318,1730999357255,-285.15,0.00026446,2]
[341563319,1730999357276,-968.02214041,0.00026569,2]
[341563320,1730999357298,-253.17,0.00026663,30]
[341563321,1730999357318,-4532.28224685,0.0002695,2]
[341563322,1730999357338,-2403.81,0.00026989,2]
[341563323,1730999357359,-1000.0,0.00026999,2]
[341563324,1730999357380,-1002.4544,0.00026999,2]
[341563325,1730999357401,-11778.98849274,0.00027,2]
[341563326,1730999366639,-450.22158438,0.000269,2]
[341563327,1730999366659,-97885.9091426,0.00027,2]
[341563328,1730999366680,-15940.0,0.00027,12]
[341563329,1730999371150,-200.0,0.00027014,2]
[341563330,1730999371170,-388.58,0.00027019,2]
[341563331,1730999371190,-373.85,0.00027048,2]
[341563332,1730999371214,-250.0,0.00027081,2]
[341563337,1730999378804,213.0,0.00022,2]
[341563338,1730999402077,185.0,0.00019725,2]
[341563339,1730999424391,1206.16,0.00025432,2]
[341563384,1730999432652,-150.0,0.00027127,2]
[341563386,1730999432662,-166.52,0.00027196,2]
[341563388,1730999432672,-1780.56056619,0.0002721,2]
[341563391,1730999432683,-1182.86964666,0.0002721,2]
[341563393,1730999432693,-1699.94,0.00027235,2]
[341563394,1730999432703,-160.01,0.0002731,120]
[341563396,1730999432713,-250.0,0.0002733,2]
[341563398,1730999432723,-250.0,0.00027334,2]
[341563400,1730999432733,-175.41,0.00027334,2]
[341563402,1730999432743,-2000.0,0.00027342,2]
[341563404,1730999432753,-227.05,0.00027342,2]
[341563406,1730999432763,-1500.0,0.00027346,2]
[341563408,1730999432773,-1709.49,0.00027366,2]
[341563410,1730999432782,-200.0,0.00027371,2]
[341563412,1730999432792,-325.16904377,0.00027371,2]
[341563414,1730999432806,-1527.25095623,0.00027371,2]
[341563416,1730999432815,-200.0,0.00027391,2]
[341563418,1730999432825,-200.0,0.00027397,7]
[341563420,1730999432835,-5504.55904377,0.00027405,2]
[341563422,1730999432846,-7853.83965434,0.00027405,2]
[341563423,1730999432861,-4945.73709976,0.00027405,2]
[341563424,1730999432875,-700.0,0.00027405,2]
[341563425,1730999432938,-1300.0,0.00027405,2]
[341563426,1730999432954,-3595.86420213,0.00027405,2]
[341563427,1730999432963,-2403.81,0.00027409,2]
[341563428,1730999432972,-393.83689506,0.00027471,2]
[341563429,1730999432981,-2963.43021282,0.00027509,2]
[341563430,1730999432993,-334.38,0.00027524,2]
[341563431,1730999433003,-636.4,0.00027541,2]
[341563432,1730999433013,-165.87,0.00027567,2]
[341563433,1730999433022,-207.03,0.00027686,2]
[341563434,1730999433032,-1206.16,0.00027696,2]
[341563435,1730999433047,-393.83689506,0.00027795,2]
[341563436,1730999433056,-2620.38617944,0.00027808,2]
[341563437,1730999433069,-343.04403338,0.00027808,2]
[341563438,1730999433079,-1939.72462812,0.00027829,2]
[341563439,1730999433119,-464.08537188,0.00027829,2]
[341563440,1730999433129,-393.83689506,0.00028053,2]
[341563441,1730999433138,-613.75314804,0.00028107,2]
[341563442,1730999433150,-2349.67706478,0.00028107,2]
[341563443,1730999433159,-761.29,0.00028219,2]
[341563444,1730999433169,-761.58,0.00028219,2]
[341563445,1730999433182,-427.61,0.00028219,2]
[341563446,1730999433192,-2403.81,0.0002825,2]
[341563447,1730999433202,-167.14,0.00028263,2]
[341563448,1730999433211,-450.22158438,0.00028292,2]
[341563449,1730999433221,-393.83689506,0.00028299,2]
[341563450,1730999433231,-152.13,0.00028311,2]
[341563451,1730999433488,-152.13,0.00028333,2]
[341563452,1730999433521,-160.658,0.0002834,120]
[341563453,1730999433531,-152.13,0.00028355,2]
[341563454,1730999433541,-388.58,0.0002837,2]
[341563455,1730999433551,-152.13,0.00028376,2]
[341563456,1730999433560,-152.13,0.00028398,2]
[341563457,1730999433570,-2963.43021282,0.00028406,2]
[341563458,1730999433579,-152.13,0.0002842,2]
[341563459,1730999433589,-152.13,0.00028442,2]
[341563460,1730999433598,-152.13,0.00028463,2]
[341563461,1730999433608,-152.13,0.00028485,2]
[341563462,1730999433617,-155.04835342,0.00028497,2]
[341563463,1730999433627,-152.13,0.00028507,2]
[341563464,1730999433636,-152.13,0.00028529,2]
[341563465,1730999433647,-152.13,0.00028551,2]
[341563466,1730999433657,-393.83689507,0.00028557,2]
[341563467,1730999433666,-152.13,0.00028572,2]
[341563468,1730999433676,-152.13,0.00028594,2]
[341563469,1730999433685,-663.49065224,0.0002867,2]
[341563470,1730999433697,-1740.31934776,0.0002867,2]
[341563471,1730999433707,-2963.43021282,0.00028704,2]
[341563472,1730999433716,-272.19,0.00028705,2]
[341563473,1730999433726,-449.44564164,0.0002871,2]
[341563474,1730999433736,-200.3365397,0.0002871,2]
[341563475,1730999433745,-370.12,0.00028751,120]
[341563476,1730999433756,-150.0,0.00028767,2]
[341563477,1730999433766,-388.66,0.00028767,2]
[341563478,1730999433775,-150.0,0.00028767,2]
[341563479,1730999433785,-150.0,0.00028767,2]
[341563480,1730999433794,-361.9,0.00028767,2]
[341563481,1730999433803,-150.0,0.00028767,2]
[341563482,1730999433813,-150.0,0.00028767,2]
[341563483,1730999433823,-361.9,0.00028767,2]
[341563484,1730999433832,-150.0,0.00028767,2]
[341563485,1730999433842,-150.0,0.00028767,2]
[341563486,1730999433852,-150.0,0.00028767,2]
[341563487,1730999433862,-150.0,0.00028767,2]
[341563488,1730999433871,-361.9,0.00028767,2]
[341563489,1730999433881,-158.22,0.00028767,2]
[341563490,1730999433891,-204.57,0.00028767,2]
[341563491,1730999433900,-150.0,0.00028767,2]
[341563492,1730999433910,-150.0,0.00028767,2]
[341563493,1730999433919,-150.0,0.00028767,2]
[341563494,1730999433928,-1351.0866,0.000289,2]
[341563495,1730999433938,-334.38,0.000289,2]
[341563496,1730999433948,-4683.7655968,0.00029,2]
[341563497,1730999433958,-200.0,0.00029,2]
[341563498,1730999433967,-527.6702,0.00029,2]
[341563499,1730999433977,-2000.0,0.00029,2]
[341563500,1730999433987,-200.0,0.00029,2]
[341563501,1730999433997,-2963.43021282,0.00029003,15]
[341563502,1730999434008,-7126.0,0.00029012,2]
[341563503,1730999434018,-2403.81,0.0002909,2]
[341563504,1730999434028,-232.71062812,0.00029202,2]
[341563505,1730999434039,-253.17,0.00029247,30]
[341563506,1730999434049,-443.98738681,0.00029273,5]
[341563507,1730999434058,-177.50865305,0.00029273,5]
[341563508,1730999434068,-511.44,0.00029277,10]
[341563509,1730999434077,-736.48,0.00029287,10]
[341563510,1730999434087,-613.73,0.00029287,10]
[341563511,1730999434097,-2000.0,0.0002929,2]
[341563512,1730999434107,-200.0,0.0002929,2]
[341563513,1730999434118,-6579.4736201,0.00029297,2]
[341563514,1730999434128,-7500.0,0.00029297,2]
[341563515,1730999434138,-35.06157734,0.00029298,2]
[341563516,1730999434150,-464.93842266,0.00029298,2]
[341563517,1730999434160,-500.0,0.00029298,2]
[341563518,1730999434169,-500.0,0.00029298,2]
[341563519,1730999434179,-500.0,0.00029298,2]
[341563520,1730999434189,-500.0,0.00029298,2]
[341563521,1730999434199,-187.66232781,0.00029298,2]
[341563522,1730999434208,-500.0,0.00029298,2]
[341563523,1730999434217,-500.0,0.00029298,2]
[341563524,1730999434226,-500.0,0.00029298,2]
[341563525,1730999434235,-500.0,0.00029298,2]
[341563526,1730999434244,-500.0,0.00029298,2]
[341563527,1730999434256,-500.0,0.00029298,2]
[341563528,1730999434266,-200.0,0.00029298,2]
[341563529,1730999434276,-500.0,0.00029298,2]
[341563530,1730999434285,-352.31649914,0.00029298,2]
[341563531,1730999434295,-18967.90743869,0.00029299,2]
[341563532,1730999434314,-1019.55718188,0.00029299,2]
[341563533,1730999434325,-6236.66397548,0.00029299,2]
[341563537,1730999438055,-2277.96,0.00027354,2]
[341563538,1730999438067,-2850.36153548,0.00027354,2]
[341563539,1730999438079,-1166.04,0.00027354,2]
[341563540,1730999438089,-1760.95994762,0.00027354,2]
[341563541,1730999438112,-15844.6785169,0.00027354,2]
[341563542,1730999438124,-684.54,0.00027573,2]
[341563543,1730999438133,-500.0,0.00029273,2]
[341563544,1730999438142,-641.84453191,0.00029273,5]
[341563545,1730999438152,-426.2,0.00029277,10]
[341563546,1730999438161,-73775.87140395,0.00029299,2]
[341563547,1730999438171,-232.71062809,0.00029302,2]
[341563548,1730999438180,-2963.43021282,0.00029302,15]
[341563549,1730999438190,-232.71062809,0.00029401,2]
[341563550,1730999438199,-232.71062809,0.00029501,2]
[341563551,1730999438210,-800.0,0.00029583,2]
[341563552,1730999438220,-382278.22248046,0.00029589,4]
[341563553,1730999438230,-5347.37333761,0.00029589,4]
[341563554,1730999438240,-150.0,0.00029589,2]
[341563555,1730999438250,-150.0,0.00029589,2]
[341563556,1730999438264,-361.9,0.00029589,2]
[341563557,1730999438273,-226.9,0.00029589,2]
[341563558,1730999438283,-150.0,0.00029589,2]
[341563559,1730999438292,-361.9,0.00029589,2]
[341563560,1730999438302,-361.9,0.00029589,2]
[341563561,1730999438311,-150.0,0.00029589,2]
[341563562,1730999438320,-150.0,0.00029589,2]
[341563563,1730999438329,-361.9,0.00029589,2]
[341563564,1730999438339,-150.0,0.00029589,2]
[341563565,1730999438348,-361.9,0.00029589,2]
[341563566,1730999438357,-344.78,0.00029589,2]
[341563567,1730999438366,-150.0,0.00029589,2]
[341563568,1730999438376,-150.0,0.00029589,2]
[341563569,1730999438385,-723.8,0.00029589,2]
[341563570,1730999438395,-432.7,0.00029589,2]
[341563571,1730999438404,-150.0,0.00029589,2]
[341563572,1730999438413,-432.7,0.00029589,2]
[341563573,1730999438423,-150.0,0.00029589,2]
[341563574,1730999438436,-150.0,0.00029589,2]
[341563575,1730999438446,-432.7,0.00029589,2]
[341563576,1730999438455,-150.0,0.00029589,2]
[341563577,1730999438464,-864.62,0.00029589,2]
[341563578,1730999438474,-150.0,0.00029589,2]
[341563579,1730999438484,-150.0,0.00029589,2]
[341563580,1730999438493,-150.0,0.00029589,2]
[341563581,1730999438504,-150.0,0.00029589,2]
[341563582,1730999438514,-150.0,0.00029589,2]
[341563583,1730999438524,-150.0,0.00029589,2]
[341563584,1730999438534,-232.71062809,0.00029601,2]
[341563585,1730999438543,-2963.43021282,0.00029601,15]
[341563586,1730999438554,-1253.0,0.00029653,2]
[341563587,1730999438563,-525.975,0.00029653,2]
[341563588,1730999438572,-559.0,0.00029653,2]
[341563589,1730999438582,-1989.0,0.00029653,2]
[341563590,1730999438591,-1920.0,0.00029653,2]
[341563591,1730999438601,-1258.0,0.00029653,2]
[341563592,1730999438610,-450.22158438,0.00029683,2]
[341563593,1730999438619,-232.71062809,0.00029701,2]
[341563594,1730999438628,-388.58,0.00029721,2]
[341563595,1730999438638,-150.0,0.00029724,2]
[341563596,1730999438647,-150.0,0.00029728,2]
[341563597,1730999438656,-150.0,0.00029732,2]
[341563599,1730999438666,-150.0,0.00029743,2]
[341563601,1730999438675,-150.0,0.00029746,2]
[341563603,1730999438684,-150.0,0.00029754,2]
[341563605,1730999438693,-150.0,0.00029758,2]
[341563607,1730999438702,-150.0,0.00029763,2]
[341563608,1730999438712,-150.0,0.00029772,2]
[341563610,1730999438721,-500.0,0.00029773,5]
[341563612,1730999438730,-1000.0,0.00029776,2]
[341563613,1730999438741,-150.0,0.00029776,2]
[341563614,1730999438750,-150.0,0.00029777,2]
[341563615,1730999438762,-150.0,0.00029783,2]
[341563616,1730999438771,-920.0,0.00029783,2]
[341563617,1730999438780,-813.0,0.00029783,2]
[341563618,1730999438790,-2908.0,0.00029783,2]
[341563619,1730999438799,-3461.0,0.00029783,2]
[341563620,1730999438809,-1174.228,0.00029794,24]
[341563621,1730999438819,-328.09670175,0.00029796,2]
[341563622,1730999438829,-7500.0,0.00029799,2]
[341563623,1730999438838,-1535.641983,0.000298,2]
[341563624,1730999438848,-87145.97103506,0.000298,2]
[341563625,1730999438857,-232.71062809,0.000298,2]
[341563626,1730999438866,-150.0,0.00029801,2]
[341563627,1730999438876,-150.0,0.00029801,2]
[341563628,1730999438885,-150.0,0.00029805,2]
[341563629,1730999438895,-150.0,0.00029816,2]
[341563630,1730999438904,-150.0,0.0002982,2]
[341563631,1730999438913,-150.0,0.00029832,2]
[341563632,1730999438922,-150.0,0.00029837,2]
[341563633,1730999438932,-150.0,0.00029847,2]
[341563634,1730999438941,-150.0,0.00029851,2]
[341563635,1730999438951,-150.0,0.00029854,2]
[341563636,1730999438960,-150.0,0.00029855,2]
[341563637,1730999438969,-150.0,0.00029863,2]
[341563638,1730999438979,-180.1477416,0.00029865,2]
[341563639,1730999438988,-150.0,0.00029868,2]
[341563640,1730999438997,-500.0,0.00029873,5]
[341563641,1730999439008,-500.0,0.00029873,5]
[341563642,1730999439018,-150.0,0.00029874,2]
[341563643,1730999439027,-1500.0,0.00029874,2]
[341563644,1730999439036,-150.0,0.00029877,2]
[341563645,1730999439046,-150.0,0.00029887,2]
[341563646,1730999439055,-150.0,0.0002989,2]
[341563647,1730999439065,-102721.1266,0.00029896,2]
[341563648,1730999439075,-159.26545529,0.00029896,2]
[341563649,1730999439084,-163.099122,0.00029896,2]
[341563650,1730999439094,-157.62550579,0.00029896,2]
[341563651,1730999439104,-157.62550577,0.00029898,2]
[341563652,1730999439114,-1000.0,0.000299,7]
[341563653,1730999439124,-69696.40428717,0.000299,2]
[341563654,1730999439134,-200.0,0.000299,2]
[341563655,1730999439144,-150.0,0.000299,2]
[341563656,1730999439153,-398.0,0.000299,14]
[341563657,1730999439162,-157.62550577,0.000299,2]
[341563658,1730999439172,-151.0,0.000299,7]
[341563659,1730999439181,-151.0,0.000299,7]
[341563660,1730999439190,-227.6686,0.000299,7]
[341563661,1730999439200,-227.6686,0.000299,7]
[341563662,1730999439209,-151.0,0.000299,7]
[341563663,1730999439218,-151.0,0.000299,7]
[341563664,1730999439227,-151.0,0.000299,7]
[341563665,1730999439236,-210.628548,0.000299,7]
[341563666,1730999439246,-210.628548,0.000299,7]
[341563667,1730999439256,-2963.43021282,0.000299,15]
[341563668,1730999439265,-151.0,0.000299,7]
[341563669,1730999439275,-151.0,0.000299,7]
[341563670,1730999439285,-196.0,0.000299,14]
[341563671,1730999439294,-151.0,0.000299,7]
[341563672,1730999439304,-151.0,0.000299,7]
[341563673,1730999439313,-1702.348739,0.000299,7]
[341563674,1730999439323,-1702.348739,0.000299,7]
[341563675,1730999439332,-151.0,0.000299,7]
[341563676,1730999439343,-151.0,0.000299,7]
[341563677,1730999439352,-863.904463,0.000299,7]
[341563678,1730999439362,-151.0,0.000299,7]
[341563679,1730999439371,-863.904463,0.000299,7]
[341563680,1730999439380,-151.0,0.000299,7]
[341563681,1730999439389,-232.27479391,0.000299,2]
[341563682,1730999439398,-1790.15355353,0.000299,2]
[341563683,1730999439407,-198.74112554,0.000299,2]
[341563684,1730999439416,-158.21800121,0.000299,2]
[341563685,1730999439425,-232.71062809,0.000299,2]
[341563686,1730999439438,-151.0,0.000299,7]
[341563687,1730999439447,-213.556968,0.000299,7]
[341563688,1730999439456,-566.113648,0.000299,7]
[341563689,1730999439465,-2732.79503162,0.000299,2]
[341563690,1730999439654,-566.113648,0.000299,7]
[341563691,1730999439664,-218.513313,0.000299,7]
[341563692,1730999439674,-218.513313,0.000299,7]
[341563693,1730999439683,-151.0,0.000299,7]
[341563694,1730999439693,-150.0,0.00029911,2]
[341563695,1730999439702,-150.0,0.00029915,2]
[341563696,1730999439711,-150.0,0.00029932,2]
[341563697,1730999439720,-150.0,0.00029933,2]
[341563698,1730999439730,-150.0,0.00029945,2]
[341563699,1730999439740,-150.0,0.00029956,2]
[341563700,1730999439749,-150.0,0.00029956,2]
[341563702,1730999439760,-1206.16,0.0002996,2]
[341563703,1730999439770,-150.0,0.00029962,2]
[341563704,1730999439779,-150.0,0.00029964,2]
[341563705,1730999439790,-150.0,0.00029972,2]
[341563706,1730999439799,-702.57457925,0.00029973,5]
[341563707,1730999439808,-201.53851427,0.00029986,2]
[341563708,1730999439818,-150.0,0.00029989,2]
[341563709,1730999439827,-150.01,0.00029995,2]
[341563710,1730999439837,-672.06524066,0.00029995,2]
[341563711,1730999439847,-151.0,0.00029995,7]
[341563712,1730999439856,-151.0,0.00029995,7]
[341563713,1730999439865,-151.0,0.00029995,7]
[341563714,1730999439874,-151.0,0.00029995,7]
[341563715,1730999439884,-151.0,0.00029995,7]
[341563716,1730999439893,-233.992974,0.00029995,7]
[341563717,1730999439902,-151.0,0.00029995,7]
[341563718,1730999439911,-151.0,0.00029995,7]
[341563719,1730999439921,-151.0,0.00029995,7]
[341563720,1730999439930,-541.187616,0.00029995,7]
[341563721,1730999439940,-541.187616,0.00029995,7]
[341563722,1730999439950,-151.0,0.00029995,7]
[341563723,1730999439960,-151.0,0.00029995,7]
[341563724,1730999439969,-500.0,0.00029995,2]
[341563725,1730999439980,-7500.0,0.00029995,2]
[341563726,1730999439990,-7500.0,0.00029995,2]
[341563727,1730999440000,-694.73919938,0.00029995,2]
[341563728,1730999440011,-347057.56899593,0.00029996,2]
[341563729,1730999440029,-2943.44593197,0.00029996,2]
[341563749,1730999440587,-386.52,0.00029996,2]
[341563752,1730999440614,-1352.07895192,0.00029996,2]
[341563760,1730999443629,-426.2,0.00029289,10]
[341563762,1730999443639,-300.219,0.00029789,2]
[341563766,1730999443669,-199.781,0.00029789,2]
[341563768,1730999443678,-500.0,0.00029789,2]
[341563770,1730999443687,-500.0,0.00029789,2]
[341563771,1730999443696,-500.0,0.00029789,2]
[341563772,1730999443705,-500.0,0.00029789,2]
[341563773,1730999443715,-517.98517886,0.00029789,2]
[341563774,1730999443724,-500.0,0.00029789,2]
[341563776,1730999443734,-27174.23264714,0.00029996,2]
[341564000,1730999446086,-437.04136991,0.00029996,2]
[341564007,1730999446143,-4629.70002134,0.00029996,2]
[341564018,1730999446255,-5080.36753929,0.00029996,2]
[341564021,1730999446269,-5999.99999672,0.00029996,2]
[341564026,1730999446315,-3821.5709442,0.00029996,2]
[341564044,1730999446501,-390323.75548409,0.00029996,2]
[341564046,1730999446514,-755.44500001,0.00029996,2]
[341564048,1730999446525,-151.0,0.00029996,7]
[341564050,1730999446535,-151.0,0.00029996,7]
[341564052,1730999446545,-192.988164,0.00029996,7]
[341564054,1730999446555,-2000.0,0.00029996,2]
[341564056,1730999446565,-192.988164,0.00029996,7]
[341564058,1730999446574,-200.0,0.00029996,2]
[341564060,1730999446584,-151.0,0.00029996,7]
[341564062,1730999446594,-296.796658,0.00029996,7]
[341564064,1730999446605,-151.0,0.00029996,7]
[341564066,1730999446615,-151.0,0.00029996,7]
[341564068,1730999446625,-151.0,0.00029996,7]
[341564070,1730999446635,-186.341505,0.00029996,7]
[341564071,1730999446644,-186.341505,0.00029996,7]
[341564073,1730999446654,-151.0,0.00029996,7]
[341564075,1730999446664,-151.0,0.00029996,7]
[341564077,1730999446674,-151.0,0.00029996,7]
[341564079,1730999446684,-151.0,0.00029996,7]
[341564081,1730999446693,-541.187616,0.00029996,7]
[341564083,1730999446703,-210.201183,0.00029996,7]
[341564085,1730999446712,-541.187616,0.00029996,7]
[341564087,1730999446722,-210.201183,0.00029996,7]
[341564090,1730999446732,-151.0,0.00029996,7]
[341564092,1730999446742,-151.0,0.00029996,7]
[341564094,1730999446751,-151.0,0.00029996,7]
[341564096,1730999446761,-151.0,0.00029996,7]
[341564098,1730999446772,-151.0,0.00029996,7]
[341564099,1730999446782,-151.0,0.00029996,7]
[341564101,1730999446792,-151.0,0.00029996,7]
[341564103,1730999446802,-151.0,0.00029996,7]
[341564105,1730999446812,-269.780538,0.00029996,2]
[341564107,1730999446821,-151.0,0.00029996,7]
[341564109,1730999446830,-269.780538,0.00029996,2]
[341564111,1730999446841,-172.571325,0.00029996,7]
[341564113,1730999446851,-172.571325,0.00029996,7]
[341564115,1730999446861,-151.0,0.00029996,7]
[341564117,1730999446870,-151.0,0.00029996,7]
[341564119,1730999446880,-151.0,0.00029996,7]
[341564121,1730999446889,-151.0,0.00029996,7]
[341564123,1730999446898,-1980.135932,0.00029996,7]
[341564125,1730999446907,-1980.135932,0.00029996,7]
[341564127,1730999446917,-151.0,0.00029996,7]
[341564129,1730999446926,-151.0,0.00029996,7]
[341564131,1730999446936,-298.01829,0.00029996,7]
[341564133,1730999446945,-151.0,0.00029996,7]
[341564134,1730999446954,-151.0,0.00029996,7]
[341564136,1730999446964,-151.0,0.00029996,7]
[341564138,1730999446973,-151.0,0.00029996,7]
[341564140,1730999446983,-151.0,0.00029996,7]
[341564142,1730999446992,-151.0,0.00029996,7]
[341564144,1730999447002,-210.301893,0.00029996,7]
[341564146,1730999447011,-210.301893,0.00029996,7]
[341564148,1730999447021,-151.0,0.00029996,7]
[341564150,1730999447030,-177.728499,0.00029996,7]
[341564152,1730999447039,-177.728499,0.00029996,7]
[341564154,1730999447050,-972.707987,0.00029996,7]
[341564156,1730999447059,-972.707987,0.00029996,7]
[341564158,1730999447068,-151.0,0.00029996,7]
[341564160,1730999447078,-295.131781,0.00029996,7]
[341564162,1730999447087,-151.0,0.00029996,7]
[341564164,1730999447097,-151.0,0.00029996,7]
[341564166,1730999447106,-151.0,0.00029996,7]
[341564168,1730999447115,-151.0,0.00029996,7]
[341564170,1730999447125,-151.0,0.00029996,7]
[341564172,1730999447135,-151.0,0.00029996,7]
[341564174,1730999447144,-4850.946896,0.00029996,7]
[341564176,1730999447154,-4850.946896,0.00029996,7]
[341564178,1730999447163,-1038.78152,0.00029996,7]
[341564180,1730999447172,-474.687466,0.00029996,7]
[341564182,1730999447181,-1038.78152,0.00029996,7]
[341564184,1730999447190,-474.687466,0.00029996,7]
[341564186,1730999447199,-151.0,0.00029996,7]
[341564187,1730999447208,-152.406946,0.00029996,7]
[341564189,1730999447217,-151.0,0.00029996,7]
[341564191,1730999447226,-151.0,0.00029996,7]
[341564193,1730999447235,-227.6686,0.00029996,7]
[341564195,1730999447244,-227.6686,0.00029996,7]
[341564197,1730999447253,-151.0,0.00029996,7]
[341564199,1730999447262,-158.343271,0.00029996,7]
[341564201,1730999447272,-151.0,0.00029996,7]
[341564203,1730999447281,-210.628548,0.00029996,7]
[341564204,1730999447291,-210.628548,0.00029996,7]
[341564206,1730999447300,-151.0,0.00029996,7]
[341564207,1730999447309,-151.0,0.00029996,7]
[341564208,1730999447319,-151.0,0.00029996,7]
[341564209,1730999447329,-151.0,0.00029996,7]
[341564210,1730999447338,-1702.348739,0.00029996,7]
[341564211,1730999447348,-176.989749,0.00029996,7]
[341564212,1730999447357,-176.989749,0.00029996,7]
[341564213,1730999447366,-1702.348739,0.00029996,7]